bitfinex/quotes_ETHUSD_20251127
["timestamp","ask_amount","ask_price","bid_price","bid_amount"]
[1764274105218,0.8697,3037.6,3037.5,5.60397517]
[1764274107597,0.3967,3037.6,3037.5,5.61818897]
[1764274108110,0.3967,3037.6,3037.5,5.60397517]
[1764274109930,0.3967,3037.6,3037.5,5.70397517]
[1764274110227,0.3967,3037.6,3037.5,5.71818897]
[1764274113938,0.3967,3037.6,3037.5,5.61818897]
[1764274114135,0.8697,3037.6,3037.5,5.60397517]
[1764274114513,0.8697,3037.6,3037.5,5.39597517]
[1764274114836,0.8697,3037.6,3037.5,4.90677517]
[1764274115419,1.17844883,3037.6,3037.5,4.18118106]
[1764274117048,1.17844883,3037.6,3037.5,0.889]
[1764274117960,1.17844883,3037.6,3037.5,0.8939038]
[1764274118149,0.70544883,3037.6,3037.5,4.18608486]
[1764274118357,0.002,3037.6,3037.5,4.66258486]
[1764274118564,0.002,3037.6,3037.5,4.76258486]
[1764274119453,0.002,3037.6,3037.5,4.66258486]
[1764274120258,0.002,3037.6,3037.5,4.76258486]
[1764274121057,0.002,3037.6,3037.5,4.66258486]
[1764274121855,0.002,3037.6,3037.5,4.76258486]
[1764274122041,0.002,3037.6,3037.5,6.13278722]
[1764274122935,0.002,3037.6,3037.5,6.12278722]
[1764274123133,0.002,3037.6,3037.5,7.89732099]
[1764274123434,0.002,3037.6,3037.5,7.88310719]
[1764274124046,0.002,3037.6,3037.5,8.34430719]
[1764274124673,0.002,3037.6,3037.5,6.56977342]
[1764274124840,0.002,3037.6,3037.5,6.58398722]
[1764274125155,0.002,3037.6,3037.5,6.77278722]
[1764274125359,0.002,3037.6,3037.5,6.75857342]
[1764274128436,0.002,3038.3,3037.9,0.4726]
[1764274128641,0.002,3038.3,3038.2,4.68431799]
[1764274129072,0.002,3038.3,3038.2,5.59631799]
[1764274129365,0.002,3038.3,3038.2,6.62481459]
[1764274129567,0.002,3038.3,3038.2,1.17639411]
[1764274129740,0.394,3038.3,3038.2,3.2530903]
[1764274130136,0.394,3038.3,3038.2,3.79874172]
[1764274130341,0.394,3038.3,3038.2,7.19016427]
[1764274130568,0.394,3038.3,3038.2,7.09016427]
[1764274130776,0.394,3038.3,3038.2,7.19016427]
[1764274130942,0.394,3038.3,3038.2,6.98216427]
[1764274131152,0.394,3038.3,3038.2,7.09016427]
[1764274132076,0.002,3038.3,3038.2,7.56276427]
[1764274132279,0.002,3038.3,3038.2,10.86618815]
[1764274132482,0.002,3038.3,3038.2,10.39358815]
[1764274132985,0.002,3038.3,3038.2,8.62489196]
[1764274133182,0.002,3038.3,3038.2,10.39203565]
[1764274133881,0.002,3038.3,3038.2,11.16072565]
[1764274134054,0.002,3038.3,3038.2,11.26072565]
[1764274134975,0.002,3038.3,3038.2,11.63332565]
[1764274135173,0.002,3038.3,3038.2,11.73332565]
[1764274135494,0.002,3038.3,3038.2,11.63332565]
[1764274135692,0.002,3038.3,3038.2,11.73332565]
[1764274138580,0.002,3038.3,3038.2,8.52990177]
[1764274139171,0.002,3038.3,3038.2,6.76275808]
[1764274139998,0.394,3038.3,3038.2,6.29015808]
[1764274140195,0.002,3038.3,3038.2,6.66275808]
[1764274140497,0.002,3038.3,3038.2,11.55194834]
[1764274140706,0.4508,3039.3,3038.7,0.1]
[1764274140867,0.1969,3039.5,3038.8,2.27288411]
[1764274141072,0.4508,3039.2,3038.8,2.27288411]
[1764274141293,0.4508,3039.2,3038.9,1.71399522]
[1764274141463,0.4508,3039.2,3038.9,0.98840111]
[1764274141662,0.4508,3039.2,3038.8,1.64729]
[1764274141663,0.392,3039.0,3038.8,1.07469]
[1764274141864,0.4508,3039.2,3038.9,1.31749]
[1764274142199,0.4508,3039.2,3038.9,1.41749]
[1764274142404,0.4508,3039.2,3039.0,6.5811122]
[1764274142824,0.392,3039.1,3039.0,3.3905561]
[1764274143286,0.4502,3039.4,3039.0,7.1319122]
[1764274143694,0.4502,3039.4,3039.0,6.6811122]
[1764274143893,0.4502,3039.4,3039.1,0.4502]
[1764274144190,0.4502,3039.4,3039.2,0.208]
[1764274144606,0.3926,3039.3,3039.2,3.49829099]
[1764274144813,0.3926,3039.3,3039.2,4.48659767]
[1764274145111,0.8422,3039.3,3039.2,4.48659767]
[1764274146584,0.8422,3039.3,3038.8,3.29077267]
[1764274146784,0.4508,3039.2,3038.9,1.19640111]
[1764274147312,0.4508,3039.2,3039.0,0.86669]
[1764274147684,0.4607,3039.1,3039.0,0.86669]
[1764274147885,0.9115,3039.1,3039.0,0.86669]
[1764274148612,0.9115,3039.1,3039.0,4.1572461]
[1764274150815,0.73642518,3039.5,3039.0,7.6558022]
[1764274151187,0.4369,3039.1,3039.0,4.3652461]
[1764274151518,0.4369,3039.1,3039.0,4.37941927]
[1764274151727,0.4745,3039.3,3039.0,8.13757537]
[1764274151891,0.4745,3039.3,3039.0,8.1234022]
[1764274152084,0.4745,3039.3,3039.1,0.22217047]
[1764274152503,0.4373,3039.2,3039.1,0.22217047]
[1764274152699,0.1969,3039.5,3039.1,0.22217047]
[1764274152700,0.4748,3039.4,3039.2,3.29033956]
[1764274153135,0.4369,3039.3,3039.2,3.29033956]
[1764274153621,0.9114,3039.3,3039.2,3.29033956]
[1764274154102,0.9134,3039.3,3039.2,3.29033956]
[1764274154700,0.9134,3039.3,3039.2,3.30450732]
[1764274158118,1.22142751,3039.3,3039.2,3.30450732]
[1764274158617,1.22142751,3039.3,3039.2,4.19450732]
[1764274163053,0.31002751,3039.3,3039.2,3.77210732]
[1764274163196,0.002,3039.3,3039.2,10.85842597]
[1764274163536,0.002,3039.3,3039.2,9.08018077]
[1764274169338,0.002,3039.3,3039.2,9.97018077]
[1764274169534,0.002,3039.3,3039.2,10.61026632]
[1764274170644,0.002,3039.3,3039.2,9.72026632]
[1764274172834,0.002,3039.3,3039.2,9.23256632]
[1764274173136,0.002,3039.3,3039.2,6.11051975]
[1764274173335,0.002,3039.3,3039.2,6.31851975]
[1764274173710,0.002,3039.3,3039.2,6.80621975]
[1764274174319,0.002,3039.3,3039.2,6.31851975]
[1764274174943,0.002,3039.3,3039.2,5.2108342]
[1764274175240,0.002,3039.3,3039.2,5.6784342]
[1764274176410,0.9321,3039.3,3039.2,5.0028342]
[1764274176613,0.9321,3039.3,3039.2,5.2108342]
[1764274176841,0.4577,3039.3,3039.2,4.01593367]
[1764274177043,0.4577,3039.3,3039.2,1.76532426]
[1764274177044,0.9321,3039.3,3039.2,1.76532426]
[1764274177210,0.9321,3039.3,3039.1,1.17713502]
[1764274177417,0.4748,3039.2,3039.0,4.46769073]
[1764274177916,0.4024,3039.1,3039.0,4.46769073]
[1764274178115,0.8765,3039.1,3039.0,4.46769073]
[1764274181334,0.8765,3039.1,3039.0,4.4818639]
[1764274183052,0.002,3039.3,3039.0,8.24792]
[1764274183351,0.4036,3039.1,3039.0,4.46769073]
[1764274183570,0.4036,3039.1,3039.0,4.4818639]
[1764274183752,0.002,3039.3,3039.0,9.52315247]
[1764274183933,0.002,3039.3,3039.1,1.27749717]
[1764274184127,0.002,3039.3,3039.2,0.22216888]
[1764274184546,0.4056,3039.3,3039.2,0.22216888]
[1764274185268,0.8786,3039.3,3039.2,0.22216888]
[1764274185832,0.8786,3039.3,3039.2,3.51250844]
[1764274186330,0.8786,3039.3,3039.2,4.69000561]
[1764274189352,0.8786,3039.3,3039.2,4.48200561]
[1764274189575,0.8786,3039.3,3039.2,4.67583673]
[1764274190878,0.4056,3039.3,3039.2,4.46783673]
[1764274191110,0.8786,3039.3,3039.2,4.46783673]
[1764274191580,0.8786,3039.3,3039.2,1.17749717]
[1764274191870,0.8786,3039.3,3039.2,3.29033956]
[1764274196286,0.8786,3039.3,3039.2,3.30450732]
[1764274199800,0.4056,3039.3,3039.2,3.29671897]
[1764274200501,0.8786,3039.3,3039.2,3.29671897]
[1764274200664,1.18664036,3039.3,3039.0,2.06749717]
[1764274200865,0.4556,3039.1,3039.0,0.89]
[1764274201255,0.877,3039.1,3039.0,0.89]
[1764274201661,0.877,3039.1,3039.0,4.1805561]
[1764274202394,0.877,3039.1,3039.0,0.89]
[1764274203000,0.877,3039.1,3039.0,4.1805561]
[1764274203157,1.18523639,3039.1,3039.0,4.1805561]
[1764274203361,1.18523639,3039.1,3039.0,0.89]
[1764274204191,1.18523639,3039.1,3039.0,4.1805561]
[1764274205291,1.18523639,3039.1,3039.0,3.2905561]
[1764274206286,1.18523639,3039.1,3039.0,4.46805327]
[1764274206593,1.18523639,3039.1,3039.0,1.17749717]
[1764274207392,1.18523639,3039.1,3038.9,2.27549717]
[1764274207592,0.4779,3039.0,3038.9,2.27549717]
[1764274208066,0.4779,3039.0,3038.9,5.56616155]
[1764274208995,0.4779,3039.0,3038.9,4.67616155]
[1764274209994,0.4779,3039.0,3038.9,1.38549717]
[1764274210571,0.4779,3039.0,3038.9,2.27549717]
[1764274211077,0.4779,3039.0,3038.9,5.56616155]
[1764274212305,0.002,3039.3,3038.9,7.85642876]
[1764274212601,0.30827289,3039.2,3039.0,1.19376663]
[1764274212775,0.4775,3039.3,3039.0,1.19376663]
[1764274212981,0.4018,3039.1,3039.0,1.19376663]
[1764274213179,0.4018,3039.1,3039.0,4.48432273]
[1764274213384,0.4018,3039.1,3038.3,2.35938719]
[1764274213385,3.47,3038.5,3038.3,2.35938719]
[1764274213712,3.47,3038.5,3037.6,0.001]
[1764274213713,0.405504,3037.7,3037.6,0.001]
[1764274214006,0.52645516,3037.7,3037.6,0.001]
[1764274214207,1.65195717,3037.7,3037.6,0.001]
[1764274214405,1.90600206,3037.7,3037.6,0.001]
[1764274215063,5.19796637,3037.7,3037.6,0.001]
[1764274215269,4.48716836,3037.7,3037.6,0.001]
[1764274216122,0.56230005,3037.7,3037.6,0.4688]
[1764274216411,3.5007199,3038.0,3037.6,0.4688]
[1764274216575,0.3068593,3037.9,3037.6,0.4688]
[1764274216772,3.5007199,3038.0,3037.6,0.4688]
[1764274217096,3.59862088,3037.9,3037.6,0.001]
[1764274217278,4.00167681,3037.9,3037.6,0.001]
[1764274217885,0.0092,3037.7,3037.6,0.001]
[1764274220745,3.29077267,3038.8,3037.6,0.9681]
[1764274221018,0.04113601,3038.7,3038.2,0.1936]
[1764274221225,0.04113601,3038.7,3038.2,0.6929]
[1764274221415,3.29062247,3039.0,3038.6,0.4678]
[1764274221599,0.40081978,3038.9,3038.6,0.4678]
[1764274224582,0.0092,3038.7,3038.2,0.6929]
[1764274224789,3.69149311,3038.9,3038.2,0.6929]
[1764274225004,3.69149311,3038.9,3038.2,3.98431332]
[1764274225660,0.002,3038.7,3038.2,3.98431332]
[1764274226151,0.002,3038.7,3038.3,0.4993]
[1764274227251,0.002,3038.7,3038.2,3.48501332]
[1764274227252,0.37134931,3038.7,3038.2,0.1936]
[1764274227420,0.04113736,3038.6,3038.1,3.29251428]
[1764274228213,0.04113736,3038.6,3038.1,3.79181428]
[1764274229003,0.04113736,3038.6,3038.5,0.4678]
[1764274229330,0.002,3038.7,3038.2,0.4993]
[1764274230531,0.002,3038.7,3038.3,3.29131422]
[1764274231048,0.002,3038.7,3038.4,0.4993]
[1764274232344,0.002,3038.7,3038.6,0.4678]
[1764274232757,0.002,3038.7,3038.6,0.9671]
[1764274232954,0.002,3038.7,3038.6,4.25808927]
[1764274233125,0.002,3038.7,3038.6,0.9671]
[1764274233667,0.002,3038.7,3038.6,4.25808927]
[1764274235858,0.002,3038.7,3038.6,5.14808927]
[1764274236979,0.002,3038.7,3038.6,8.34906241]
[1764274237182,0.002,3038.7,3038.6,9.07465652]
[1764274237516,0.002,3038.7,3038.6,10.35947182]
[1764274240687,0.002,3038.7,3038.6,7.05849868]
[1764274240862,0.002,3038.7,3038.6,5.87368338]
[1764274241478,0.002,3038.7,3038.6,4.85678927]
[1764274242395,0.002,3038.7,3038.6,5.31938927]
[1764274242707,0.002,3038.7,3038.6,1.5658]
[1764274243076,0.002,3038.7,3038.6,4.85678927]
[1764274244324,0.002,3038.7,3038.6,5.31938927]
[1764274247139,0.002,3038.7,3038.6,9.19584434]
[1764274247344,0.002,3038.7,3038.6,10.02143845]
[1764274249408,0.002,3039.1,3038.7,0.72559411]
[1764274249737,0.002,3039.1,3039.0,4.52206725]
[1764274249943,0.002,3039.1,3039.0,8.38324712]
[1764274250112,0.002,3039.3,3039.2,0.1]
[1764274250312,0.002,3039.3,3039.2,0.7846]
[1764274250513,0.002,3039.3,3039.2,1.2472]
[1764274251437,0.002,3039.3,3039.2,8.46410681]
[1764274251641,0.002,3039.3,3039.2,10.02567985]
[1764274256951,0.002,3039.3,3039.2,6.93270671]
[1764274257150,0.002,3039.3,3039.2,5.16313367]
[1764274257558,0.002,3039.3,3039.2,5.37113367]
[1764274258156,0.002,3039.3,3039.2,4.70053367]
[1764274258342,0.002,3039.3,3039.2,3.49833956]
[1764274259276,0.002,3039.3,3039.2,5.28203367]
[1764274260253,0.002,3039.3,3039.2,5.18203367]
[1764274261232,0.002,3039.3,3039.2,7.1183812]
[1764274261654,0.002,3039.3,3039.2,6.5557812]
[1764274262433,0.002,3039.3,3039.2,6.07203367]
[1764274264082,0.002,3039.3,3039.2,6.17203367]
[1764274264491,0.002,3039.3,3039.2,6.07203367]
[1764274265479,0.002,3039.3,3039.2,5.18203367]
[1764274266878,0.002,3039.3,3039.2,6.07203367]
[1764274267185,0.002,3039.3,3039.2,7.0183812]
[1764274268846,0.0132,3039.3,3039.2,6.0602812]
[1764274269080,0.0132,3039.3,3039.2,5.11393367]
[1764274269280,0.002,3039.3,3039.2,6.07203367]
[1764274269457,0.002,3039.3,3039.2,5.60943367]
[1764274269852,0.002,3039.3,3039.2,5.11393367]
[1764274270380,0.0132,3039.3,3039.2,5.11393367]
[1764274270547,0.002,3039.3,3039.2,5.11393367]
[1764274271364,0.002,3039.3,3039.2,4.22393367]
[1764274271986,0.002,3039.3,3039.2,5.11393367]
[1764274273985,0.0132,3039.3,3039.0,0.001]
[1764274274154,0.0112,3039.1,3039.0,0.001]
[1764274274354,0.002,3039.3,3039.0,0.001]
[1764274274574,0.0112,3039.1,3039.0,0.001]
[1764274275267,0.31885472,3039.1,3039.0,0.001]
[1764274276354,0.31890707,3039.1,3039.0,0.001]
[1764274277384,0.0112,3039.1,3039.0,0.001]
[1764274280261,0.0112,3039.1,3039.0,0.891]
[1764274280977,0.002,3039.3,3039.0,0.891]
[1764274281287,0.002,3039.3,3039.2,0.4841]
[1764274282378,0.002,3039.3,3039.2,3.77443956]
[1764274285671,0.0132,3039.3,3039.2,3.29033956]
[1764274285991,0.002,3039.3,3039.2,3.29033956]
[1764274286165,0.002,3039.3,3039.2,4.18033956]
[1764274286873,0.0132,3039.3,3039.2,4.18033956]
[1764274290396,0.002,3039.3,3039.2,4.66443956]
[1764274290897,0.002,3039.3,3039.2,5.13853956]
[1764274292378,0.002,3039.3,3039.2,6.00233768]
[1764274294206,0.002,3039.3,3039.2,6.10233768]
[1764274294783,0.002,3039.3,3039.2,6.00233768]
[1764274295120,0.002,3039.3,3039.2,6.10233768]
[1764274296212,0.002,3039.3,3039.2,9.94905042]
[1764274298611,0.002,3039.3,3039.2,9.36455442]
[1764274298788,0.002,3039.7,3039.2,9.36455442]
[1764274298789,0.002,3039.7,3039.6,0.1]
[1764274298983,0.002,3039.7,3039.6,5.11291274]
[1764274299207,0.002,3039.7,3039.6,5.62420401]
[1764274300300,0.002,3039.7,3039.6,8.91411057]
[1764274303694,0.002,3039.7,3039.6,9.80411057]
[1764274304810,0.002,3039.7,3039.6,8.91411057]
[1764274305222,0.002,3039.7,3039.6,9.31961457]
[1764274306999,0.05230354,3041.1,3040.3,0.1]
[1764274307000,0.30706165,3040.9,3040.3,0.1]
[1764274307197,0.0112,3041.1,3040.6,0.1]
[1764274307390,0.0112,3041.3,3040.4,3.42911863]
[1764274307590,0.0112,3041.3,3040.5,0.1]
[1764274307591,0.3069958,3041.2,3040.5,0.1]
[1764274307792,0.3069958,3041.1,3040.6,0.34291186]
[1764274308014,0.0112,3041.2,3040.6,0.34291186]
[1764274308326,0.0112,3041.2,3040.6,3.28878013]
[1764274308327,0.3069906,3041.1,3040.6,3.28878013]
[1764274308527,0.0112,3040.7,3040.6,3.28878013]
[1764274308694,0.31814288,3041.1,3040.6,6.5776047]
[1764274309022,0.0112,3041.3,3040.6,7.0589047]
[1764274309223,3.2876352,3041.7,3040.6,7.0589047]
[1764274309224,0.30694225,3041.2,3040.6,3.28878013]
[1764274309521,0.0112,3041.2,3040.6,6.5776047]
[1764274309720,0.04109814,3041.5,3040.6,6.5776047]
[1764274309928,0.0112,3041.2,3040.6,6.5776047]
[1764274310126,0.0112,3041.2,3040.6,6.6776047]
[1764274310421,0.0112,3041.2,3040.6,6.5776047]
[1764274310826,0.0112,3040.7,3040.6,3.28878013]
[1764274313021,0.04109949,3041.4,3040.6,7.0589047]
[1764274313221,0.30681151,3041.3,3040.6,7.0589047]
[1764274313440,0.3479137,3041.2,3040.6,6.5776047]
[1764274313593,0.05230219,3041.2,3040.6,6.5776047]
[1764274313936,0.0112,3040.7,3040.6,0.208]
[1764274314098,0.0224,3040.7,3040.6,0.208]
[1764274314295,0.0224,3040.7,3040.5,0.208]
[1764274314495,0.0224,3040.7,3040.5,3.49686798]
[1764274314696,0.0112,3040.6,3040.5,3.49686798]
[1764274314892,0.04110219,3041.2,3040.5,7.46439043]
[1764274315200,0.002,3040.7,3040.5,7.94569043]
[1764274317926,0.002,3040.7,3040.5,7.46439043]
[1764274320109,0.0112,3040.6,3040.5,3.49686798]
[1764274320314,0.002,3040.7,3040.5,6.78580072]
[1764274320511,0.002,3040.7,3040.5,9.9834067]
[1764274320711,0.0224,3040.6,3040.3,0.208]
[1764274320935,0.0112,3040.6,3040.3,0.208]
[1764274321139,0.0112,3040.4,3040.3,0.208]
[1764274322417,0.002,3040.7,3040.3,0.6893]
[1764274322609,0.30726748,3040.6,3040.5,3.28893274]
[1764274323006,0.31846748,3040.6,3040.4,3.28898241]
[1764274323202,0.0112,3040.5,3040.4,3.28898241]
[1764274325032,0.002,3040.7,3040.4,3.28898241]
[1764274325346,0.30747604,3040.6,3040.4,3.28898241]
[1764274325532,0.30747604,3040.5,3040.4,3.28898241]
[1764274326934,0.30747604,3040.5,3040.4,3.77028241]
[1764274328538,0.30747604,3040.5,3040.4,3.28898241]
[1764274328764,0.30747604,3040.5,3040.4,4.81377944]
[1764274329043,0.002,3040.7,3040.5,0.72559411]
[1764274329339,0.002,3040.7,3040.6,4.50450009]
[1764274329537,0.002,3040.7,3040.6,4.85580009]
[1764274329830,0.002,3040.7,3040.6,4.95580009]
[1764274330032,0.002,3040.7,3040.6,6.21353213]
[1764274330928,0.002,3040.7,3040.6,9.5023567]
[1764274332504,0.002,3041.1,3041.0,0.505504]
[1764274332705,0.02,3042.4,3042.1,0.1]
[1764274333017,0.02,3042.4,3042.2,0.208]
[1764274333216,0.02,3042.4,3041.7,0.72559411]
[1764274333539,0.02,3042.4,3042.1,0.72559411]
[1764274333718,0.02,3042.4,3042.2,0.208]
[1764274334233,0.0112,3042.3,3042.1,0.72559411]
[1764274334426,0.0112,3042.2,3041.8,1.0588824]
[1764274334630,0.02,3042.4,3041.9,0.208]
[1764274335112,0.02,3042.4,3042.0,7.30021605]
[1764274335435,0.0112,3042.1,3042.0,7.21051106]
[1764274335941,0.0112,3042.1,3042.0,4.01290508]
[1764274336140,0.0112,3042.1,3042.0,4.22090508]
[1764274336439,0.0112,3042.1,3042.0,7.41851106]
[1764274336737,0.02,3042.4,3042.0,10.70582203]
[1764274337760,0.02,3042.4,3042.2,3.19760598]
[1764274339362,0.02,3042.4,3042.3,3.28698681]
[1764274339739,0.0312,3042.4,3042.3,3.28698681]
[1764274340469,0.0424,3042.4,3042.3,0.208]
[1764274341398,0.0312,3042.4,3042.3,0.208]
[1764274343569,0.0312,3042.4,3042.2,3.28708435]
[1764274343811,0.0224,3042.3,3041.9,0.89]
[1764274344022,0.0112,3042.0,3041.9,0.89]
[1764274344308,0.0112,3042.0,3041.9,1.098]
[1764274345270,3.30976266,3042.0,3041.5,0.89]
[1764274345467,3.30976266,3042.0,3040.8,3.28856242]
[1764274345468,0.0112,3041.5,3041.0,3.28837308]
[1764274345706,6.58592532,3042.0,3041.1,0.93359411]
[1764274345707,0.0112,3041.3,3041.1,0.93359411]
[1764274345891,0.0112,3041.3,3041.1,4.13120009]
[1764274346071,3.29845654,3042.1,3041.2,0.9616]
[1764274346267,0.3743388,3042.0,3041.1,4.13120009]
[1764274346701,0.0112,3041.2,3041.1,4.13120009]
[1764274346890,0.0112,3041.2,3041.1,0.93359411]
[1764274347513,0.0112,3041.7,3041.2,3.28817572]
[1764274348207,0.0112,3041.3,3041.2,4.01376983]
[1764274348773,0.0112,3041.3,3040.8,0.89]
[1764274348989,0.3631388,3042.0,3041.0,0.72559411]
[1764274349334,0.04108733,3042.3,3041.7,3.19760598]
[1764274349497,0.0112,3042.2,3041.8,0.208]
[1764274349696,0.0112,3042.2,3041.5,0.72559411]
[1764274349697,0.0112,3041.6,3041.5,0.72559411]
[1764274349901,0.0112,3041.6,3041.5,0.93359411]
[1764274350801,6.5937926,3042.4,3041.5,0.93359411]
[1764274350802,0.05228868,3042.2,3041.5,1.42439411]
[1764274351002,0.71689808,3042.2,3041.5,1.42439411]
[1764274351595,0.71689808,3042.2,3041.6,3.28774329]
[1764274353999,4.00401496,3042.2,3041.5,0.93359411]
[1764274354225,0.0112,3041.7,3041.5,4.22142095]
[1764274354723,0.0112,3041.7,3041.6,0.89]
[1764274355529,0.0112,3041.7,3041.6,1.098]
[1764274356139,3.33940556,3042.2,3041.6,1.098]
[1764274356338,3.33940556,3042.2,3041.6,4.38565502]
[1764274356561,0.05228868,3042.2,3041.6,7.67339831]
[1764274356746,0.04108868,3042.2,3041.6,7.583261]
[1764274357262,0.30701461,3042.1,3041.6,4.38565502]
[1764274357430,0.04109138,3042.0,3041.6,4.38565502]
[1764274358232,0.04109138,3042.0,3041.6,4.17765502]
[1764274358424,0.04109003,3042.1,3041.7,3.49561803]
[1764274358640,0.30727759,3042.0,3041.7,3.28761803]
[1764274358856,0.04109003,3042.1,3041.8,0.208]
[1764274359042,0.30727753,3042.0,3041.8,0.208]
[1764274359247,0.0112,3041.9,3041.8,0.208]
[1764274360550,0.0112,3041.9,3041.8,1.098]
[1764274360744,0.3298034,3041.9,3041.8,1.098]
[1764274360945,0.37089613,3041.9,3041.8,1.098]
[1764274362035,0.37089613,3041.9,3041.8,0.89]
[1764274362858,4.02414169,3041.9,3041.8,0.89]
[1764274364939,0.35969613,3041.9,3041.8,0.89]
[1764274365145,0.3186034,3041.9,3041.8,0.89]
[1764274366364,3.61722244,3041.9,3041.5,1.098]
[1764274366669,0.0112,3041.6,3041.5,1.098]
[1764274366839,0.3186034,3041.6,3041.5,1.098]
[1764274370472,0.3074034,3041.6,3041.5,1.5569]
[1764274371663,0.3074034,3041.6,3041.5,2.0533]
[1764274371862,0.3074034,3041.6,3041.5,5.87527547]
[1764274372062,0.04109138,3042.0,3041.5,5.87527547]
[1764274372375,0.30768057,3041.9,3041.7,0.4589]
[1764274372672,0.30768057,3041.8,3041.7,0.4589]
[1764274372873,0.30768057,3041.8,3041.7,0.9553]
[1764274373075,0.30768057,3041.8,3041.7,0.4589]
[1764274373464,0.31888057,3041.8,3041.6,0.89]
[1764274373669,0.31888057,3041.7,3041.6,0.89]
[1764274374874,3.60651577,3041.7,3041.6,0.89]
[1764274375063,0.33008057,3041.7,3041.6,1.098]
[1764274375272,0.73182759,3041.7,3041.6,1.098]
[1764274375464,0.37117601,3041.7,3041.6,1.098]
[1764274375668,0.35997601,3041.7,3041.6,1.098]
[1764274376066,3.64761121,3041.7,3041.6,1.098]
[1764274376267,0.35997601,3041.7,3041.6,1.098]
[1764274376453,3.64761121,3041.7,3041.6,1.098]
[1764274377882,3.64761121,3041.7,3041.6,1.098]
[1764274378253,3.64761121,3041.7,3041.5,0.208]
[1764274378465,0.30768057,3041.6,3041.5,0.208]
[1764274379278,0.31888057,3041.6,3041.5,0.208]
[1764274380280,3.98258498,3041.6,3041.3,0.89]
[1764274380483,3.98258498,3041.6,3041.0,0.001]
[1764274380484,0.0112,3041.4,3041.1,0.89]
[1764274380659,0.0112,3041.1,3041.0,0.001]
[1764274380984,0.31888057,3041.1,3041.0,0.001]
[1764274383682,3.60716441,3041.1,3041.0,0.001]
[1764274383989,0.31888057,3041.1,3041.0,0.001]
[1764274385389,3.60716441,3041.1,3041.0,0.001]
[1764274386052,4.29668882,3041.1,3041.0,0.001]
[1764274386498,4.30788882,3041.1,3041.0,0.001]
[1764274387770,4.40788882,3041.1,3041.0,0.001]
[1764274387998,4.44899236,3041.1,3041.0,0.001]
[1764274389204,1.04950852,3041.1,3041.0,0.001]
[1764274389877,4.33779236,3041.1,3041.0,0.001]
[1764274391798,7.6260762,3041.1,3040.4,3.49704091]
[1764274391997,0.014,3040.8,3040.4,3.49704091]
[1764274392202,0.30768057,3040.7,3040.4,3.49704091]
[1764274392504,0.04110625,3040.9,3040.4,3.49704091]
[1764274392688,0.30735588,3040.8,3040.4,3.49704091]
[1764274392883,0.30735588,3040.7,3040.4,3.49704091]
[1764274393088,0.04110625,3040.9,3040.6,0.4935]
[1764274393285,3.28828384,3041.1,3040.4,4.17566928]
[1764274393286,0.04110489,3041.0,3040.8,0.4935]
[1764274393509,0.30731851,3040.9,3040.8,0.4935]
[1764274394321,3.60989357,3040.9,3040.1,0.199]
[1764274394523,0.34842611,3040.8,3040.1,0.8925]
[1764274394822,0.30731851,3040.7,3040.2,0.81970415]
[1764274395128,0.0411103,3040.6,3040.3,0.4855]
[1764274395311,0.04110625,3040.9,3040.3,0.4855]
[1764274395623,0.30728076,3040.8,3040.5,0.4935]
[1764274395833,0.34838971,3040.7,3040.5,0.4935]
[1764274395996,0.04110895,3040.7,3040.5,0.979]
[1764274396324,0.04110895,3040.7,3040.6,0.4935]
[1764274396525,0.30726251,3040.7,3040.6,0.4935]
[1764274397824,0.0411076,3040.8,3040.6,0.4935]
[1764274398906,0.0411076,3040.8,3040.6,0.979]
[1764274399927,0.04110625,3040.9,3040.6,0.979]
[1764274400097,0.30724107,3040.8,3040.6,0.979]
[1764274400297,0.04110895,3040.7,3040.6,0.979]
[1764274400520,3.28851668,3040.9,3040.6,0.979]
[1764274400826,0.34835925,3040.8,3040.6,0.979]
[1764274401130,0.0411076,3040.8,3040.6,0.979]
[1764274402345,0.30731795,3040.7,3040.6,0.979]
[1764274405545,0.30731795,3040.7,3040.6,4.26782457]
[1764274405714,0.30731795,3040.7,3040.6,0.979]
[1764274407434,0.30731795,3040.7,3040.6,0.4935]
[1764274407635,0.32131795,3040.7,3040.5,0.001]
[1764274407836,0.34842825,3040.6,3040.5,0.001]
[1764274408036,0.34842825,3040.6,3040.5,0.4865]
[1764274408336,0.34842825,3040.6,3040.5,0.98]
[1764274411827,0.30731795,3040.6,3040.5,4.26893274]
[1764274412028,0.30731795,3040.6,3040.5,4.47693274]
[1764274412446,0.30731795,3040.6,3040.5,1.188]
[1764274413156,0.30731795,3040.6,3040.5,4.47693274]
[1764274414167,0.30731795,3040.6,3040.5,1.188]
[1764274414455,0.30731795,3040.6,3040.5,4.47693274]
[1764274417875,0.30731795,3040.6,3040.5,7.98906076]
[1764274418173,0.002,3040.8,3040.6,0.72559411]
[1764274418373,0.002,3040.8,3040.7,0.4935]
[1764274418541,0.002,3040.8,3040.7,1.079]
[1764274418951,0.002,3040.8,3040.7,0.979]
[1764274419275,0.002,3040.8,3040.7,2.90495287]
[1764274419475,0.002,3040.8,3040.7,2.17935876]
[1764274420281,0.002,3040.8,3040.7,6.19366928]
[1764274420955,0.002,3040.8,3040.7,6.29366928]
[1764274421754,0.002,3040.8,3040.7,6.69917328]
[1764274422071,0.002,3040.8,3040.7,8.87917328]
[1764274422864,0.002,3040.8,3040.7,9.01086724]
[1764274429999,0.002,3040.8,3040.7,8.60536324]
[1764274430175,0.016,3040.8,3040.7,2.18]
[1764274430496,0.016,3040.8,3040.7,5.46871641]
[1764274430663,0.002,3040.8,3040.7,5.46871641]
[1764274431370,0.002,3040.8,3040.7,6.45351641]
[1764274432308,0.30953299,3040.8,3040.7,6.45351641]